{"text_format":"1","workbook":"xlsx","n_sheets":3,"sheets":["FORMATO HORARIO","INSTRUCTIVO","LISTAS"],"not_rendered":{"charts":0,"images":2,"macros":1,"external_links":0,"defined_names":8,"comments":1,"pivot_tables":0},"unopened":[],"bounds":{"document_bytes":16777216,"sheet_cells":100000,"rows_first":2000,"rows_last":500,"rows_between":2000,"halvings":0,"cell_chars":16384,"cell_head_chars":4096},"cells_cut":0,"cells_raw":0,"read":"whole","date_system":"1900"}

{"sheet":"FORMATO HORARIO","index":0,"n_rows":56,"n_cols":17,"rows_kept":56,"cut":false,"hidden":false,"merged":[[0,6,0,12],[1,0,1,13],[31,8,31,9],[32,0,32,7],[14,0,15,3],[37,0,38,3],[39,0,39,3],[40,0,40,3],[42,0,42,3],[5,10,5,16],[6,10,6,16],[7,13,7,16],[8,13,8,16],[9,13,9,16],[10,13,10,16],[11,13,11,16],[3,14,3,16],[4,14,4,16],[12,10,12,12],[11,10,11,12],[6,9,7,9],[5,2,5,8],[8,0,8,4],[6,8,7,8],[8,10,8,12],[29,0,29,7],[29,8,29,9],[30,0,30,7],[25,10,25,15],[24,0,24,16],[25,16,26,16],[37,16,38,16],[9,10,9,12],[28,0,28,7],[28,8,28,9],[25,0,26,7],[25,8,26,9],[27,8,27,9],[23,0,23,7],[23,8,23,9],[12,5,12,9],[14,8,15,8],[14,9,15,9],[22,0,22,9],[14,16,15,16],[14,5,15,5],[12,0,12,4],[14,10,14,15],[30,8,30,9],[31,0,31,7],[53,0,53,15],[10,0,10,4],[43,16,44,16],[42,8,42,9],[43,0,44,3],[14,7,15,7],[14,4,15,4],[27,0,27,7],[37,4,38,9],[48,2,48,9],[11,0,11,4],[45,4,45,9],[36,0,36,16],[42,10,42,15],[43,4,44,9],[40,8,40,9],[41,0,41,7],[41,8,41,9],[39,4,39,9],[43,10,43,15],[19,0,19,3],[8,5,8,7],[57,14,57,15],[48,10,48,13],[50,5,52,9],[50,0,50,4],[11,5,11,7],[46,8,46,9],[42,6,42,7],[49,5,49,9],[51,0,51,4],[50,12,50,15],[55,12,55,15],[48,0,48,1],[57,0,57,2],[52,12,52,15],[51,12,51,15],[48,14,48,16],[45,0,45,3],[32,8,32,9],[33,0,33,7],[33,8,33,9],[42,4,42,5],[40,4,40,7],[13,0,13,16],[2,0,2,13],[2,14,2,16],[3,12,3,13],[3,0,3,11],[37,10,37,15],[4,0,4,7],[4,9,4,11],[4,12,4,13],[9,5,9,7],[9,0,9,4],[10,5,10,7],[16,0,16,3],[10,10,10,12],[12,13,12,16],[34,0,34,7],[34,8,34,9],[35,0,35,7],[35,8,35,9],[18,0,18,3],[7,10,7,12],[17,0,17,3],[20,0,20,3],[14,6,15,6],[6,0,7,7]]}
[]
["Nombre del Documento: Horario de Actividades",null,null,null,null,null,null,null,null,null,null,null,null,null,"Código: ITTJ-AC-PO-004-05"]
["Referencia a la Norma ISO 9001:2015 7.1.5  8.1, 8.2.2, 8.5.1, 8.6, 9.1.1",null,null,null,null,null,null,null,null,null,null,null,null,null,"Página 1 de 1"]
[null,null,null,null,null,null,null,null,null,null,null,null,"REVISIÓN",null,"03"]
["INSTITUTO TECNOLÓGICO DE TLAJOMULCO",null,null,null,null,null,null,null,"C.C.T.:",1,null,null,"PERÍODO ESCOLAR",null,2]
["NOMBRE COMPLETO:",null,3,null,null,null,null,null,null,null,"CLAVE COMPLETA DE LA(S) PLAZA(S): "]
["ESCOLARIDAD DEL PERSONAL ",null,null,null,null,null,null,null,"PASANTE","TITULADO (CÉDULA)",4]
[null,null,null,null,null,null,null,null,null,null,"R.F.C.",null,null,"NO. DE HRS. DE NOMBRAMIENTO:"]
["LICENCIATURA EN:",null,null,null,null,6,null,null,null,null,5,null,null,7]
["ESPECIALIZACIÓN EN:",null,null,null,null,null,null,null,null,null,"TIPO DE NOMBRAMIENTO: ",null,null,"FECHA DE INGRESO A LA S.E.P. "]
["MAESTRÍA EN:",null,null,null,null,null,null,null,null,null,7,null,null,8]
["DOCTORADO EN:",null,null,null,null,null,null,null,null,null,"NO. DE TARJETA DE CONTROL: ",null,null,"FECHA DE INGRESO A LA INSTITUCIÓN: "]
["UNIDAD ORGÁNICA DE ADSCRIPCIÓN:",null,null,null,null,10,null,null,null,null,9,null,null,8]
["I.- CARGA ACADÉMICA "]
["ASIGNATURA       (11)                                                            ",null,null,null,"GRUPO\n(12)","ESTUDIANTES \n(13)","AULA, TALLER O LAB. \n(14)","NIVEL                              \n15","MODALIDAD    \n16","CARRERA \n(17)","HORARIO (18)",null,null,null,null,null,"TOTAL HRS SEMANALES (19)"]
[null,null,null,null,null,null,null,null,null,null,"Lunes","Martes","Miércoles","Jueves","Viernes","Sábado"]
[null,null,null,null,null,null,null,null,null,null,null,null,null,null,null,null,{"$f":"Módulo1.NumeroDeHoras(K17)\n+Módulo1.NumeroDeHoras(L17)\n+Módulo1.NumeroDeHoras(M17)\n+Módulo1.NumeroDeHoras(N17)\n+Módulo1.NumeroDeHoras(O17)\n+Módulo1.NumeroDeHoras(P17)","v":0}]
[null,null,null,null,null,null,null,null,null,null,null,null,null,null,null,null,0]
[null,null,null,null,null,null,null,null,null,null,null,null,null,null,null,null,0]
[null,null,null,null,null,null,null,null,null,null,null,null,null,null,null,null,0]
[null,null,null,null,null,null,null,null,null,null,null,null,null,null,null,null,0]
[null,null,null,null,null,null,null,null,null,null,null,null,null,null,null,null,0]
["PREPARACIÓN, CONTROL Y EVALUACIÓN DE MATERIAS QUE IMPARTE",null,null,null,null,null,null,null,null,null,null,null,null,null,null,null,{"$f":"Módulo1.NumeroDeHoras(K23)\n+Módulo1.NumeroDeHoras(L23)\n+Módulo1.NumeroDeHoras(M23)\n+Módulo1.NumeroDeHoras(N23)\n+Módulo1.NumeroDeHoras(O23)\n+Módulo1.NumeroDeHoras(P23)","v":0}]
[null,null,null,null,null,null,null,null,"                            SUBTOTAL  (20)",null,{"$f":"Módulo1.NumeroDeHoras(K17)\n+Módulo1.NumeroDeHoras(K19)\n+Módulo1.NumeroDeHoras(K20)\n+Módulo1.NumeroDeHoras(K21)\n+Módulo1.NumeroDeHoras(K18)\n+Módulo1.NumeroDeHoras(K22)\n+Módulo1.NumeroDeHoras(K23)","v":0},0,0,{"$f":"Módulo1.NumeroDeHoras(N17)\n+Módulo1.NumeroDeHoras(N19)\n+Módulo1.NumeroDeHoras(N20)\n+Módulo1.NumeroDeHoras(N21)\n+Módulo1.NumeroDeHoras(N18)\n+Módulo1.NumeroDeHoras(N22)\n+Módulo1.NumeroDeHoras(N23)","v":0},{"$f":"Módulo1.NumeroDeHoras(O17)\n+Módulo1.NumeroDeHoras(O19)\n+Módulo1.NumeroDeHoras(O20)\n+Módulo1.NumeroDeHoras(O21)\n+Módulo1.NumeroDeHoras(O18)\n+Módulo1.NumeroDeHoras(O22)\n+Módulo1.NumeroDeHoras(O23)","v":0},0,{"$f":"SUM(Q17:Q23)","v":0}]
["II.- ACTIVIDADES DE APOYO A LA DOCENCIA "]
["NOMBRE DE LA ACTIVIDAD  (21)",null,null,null,null,null,null,null,"PROGRAMAS Y PROYECTOS   (22)",null,"HORARIO (23)",null,null,null,null,null,"TOTAL HRS SEMANALES (24)"]
[null,null,null,null,null,null,null,null,null,null,"Lunes","Martes","Miércoles","Jueves","Viernes","Sábado","HORAS"]
["1. PROGRAMA INSTITUCIONAL DE TUTORIAS",null,null,null,null,null,null,null,"1.1.2.5.1",null,null,null,null,null,null,null,{"$f":"Módulo1.NumeroDeHoras(K28)\n+Módulo1.NumeroDeHoras(L28)\n+Módulo1.NumeroDeHoras(M28)\n+Módulo1.NumeroDeHoras(N28)\n+Módulo1.NumeroDeHoras(O28)\n+Módulo1.NumeroDeHoras(P28)","v":0}]
["2. ACTIVIDADES DE ACADEMIA",null,null,null,null,null,null,null,"1.2.2.3.1",null,null,null,null,null,null,null,{"$f":"Módulo1.NumeroDeHoras(K29)\n+Módulo1.NumeroDeHoras(L29)\n+Módulo1.NumeroDeHoras(M29)\n+Módulo1.NumeroDeHoras(N29)\n+Módulo1.NumeroDeHoras(O29)\n+Módulo1.NumeroDeHoras(P29)","v":0}]
["3. DISEÑAR O PRODUCIR MATERIALES DIDÁCTICOS",null,null,null,null,null,null,null,"1.2.3.4.1",null,null,null,null,null,null,null,0]
["4. ACTIVIDADES DE APOYO A LA INVESTIGACIÓN",null,null,null,null,null,null,null,"2.4.2.4.1",null,null,null,null,null,null,null,0]
["5. PRESTAR  ASESORÍAS EN PROYECTOS EXTERNOS Y LABORES DE EXTENSIÓN",null,null,null,null,null,null,null,"2.5.1.6.1",null,null,null,null,null,null,null,0]
["6. PRESTAR ASESORÍAS EN PROYECTOS DE RESIDENCIAS PROFESIONALES",null,null,null,null,null,null,null,"1.1.2.6.2",null,null,null,null,null,null,null,0]
["7. PRESTAR ASESORIA A TESISTAS",null,null,null,null,null,null,null,"2.4.1.4.1",null,null,null,null,null,null,null,0]
[null,null,null,null,null,null,null,null,"                            SUBTOTAL  (25)",null,{"$f":"Módulo1.NumeroDeHoras(K28)\n+Módulo1.NumeroDeHoras(K29)\n+Módulo1.NumeroDeHoras(K30)\n+Módulo1.NumeroDeHoras(K31)\n+Módulo1.NumeroDeHoras(K32)\n+Módulo1.NumeroDeHoras(K33)\n+Módulo1.NumeroDeHoras(K34)","v":0},0,0,0,0,{"$f":"Módulo1.NumeroDeHoras(P28)\n+Módulo1.NumeroDeHoras(P29)\n+Módulo1.NumeroDeHoras(P30)\n+Módulo1.NumeroDeHoras(P31)\n+Módulo1.NumeroDeHoras(P32)\n+Módulo1.NumeroDeHoras(P33)\n+Módulo1.NumeroDeHoras(P34)","v":0},{"$f":"SUM(Q28:Q34)","v":0}]
[null,null,null,null,null,null,null,null,"                        TOTAL (26)",null,{"$f":"+K35+K24","v":0},0,0,0,0,0,0]
["III.- ACTIVIDADES EN LA ADMINISTRACIÓN"]
["PUESTO  \n(27)",null,null,null,"UNIDAD ORGÁNICA DE ADSCRIPCIÓN  \n(28)",null,null,null,null,null,"HORARIO  (29)",null,null,null,null,null,"TOTAL HRS SEMANALES  (30)"]
[null,null,null,null,null,null,null,null,null,null,"Lunes","Martes","Miércoles","Jueves","Viernes","Sábado","HORAS"]
[null,null,null,null,null,null,null,null,null,null,null,null,null,null,null,null,{"$f":"Módulo1.NumeroDeHoras(K40)\n+Módulo1.NumeroDeHoras(L40)\n+Módulo1.NumeroDeHoras(M40)\n+Módulo1.NumeroDeHoras(N40)\n+Módulo1.NumeroDeHoras(O40)\n+Módulo1.NumeroDeHoras(P40)","v":0}]
[null,null,null,null,null,null,null,null,"                            SUBTOTAL (31)",null,{"$f":"Módulo1.NumeroDeHoras(K40)","v":0},{"$f":"Módulo1.NumeroDeHoras(L40)","v":0},0,0,0,0,{"$f":"SUM(Q40:Q40)","v":0}]
[null,null,null,null,null,null,null,null,"                            TOTAL (32)",null,{"$f":"+K41+K36","v":0},0,0,0,0,0,0]
["PERSONAL NO DOCENTE:  (33)",null,null,null,"Primaria (  )",null,"Secundaria (  )",null,"Preparatoria (  )",null,"Otro (  ) Especificar ___________________________"]
["PUESTO   (34)",null,null,null,"UNIDAD ORGÁNICA DE ADSCRIPCIÓN  (35)",null,null,null,null,null,"HORARIO (36)",null,null,null,null,null,"TOTAL HRS SEMANALES (37)"]
[null,null,null,null,null,null,null,null,null,null,"Lunes","Martes","Miércoles","Jueves","Viernes","Sábado","HORAS"]
[null,null,null,null,null,null,null,null,null,null,null,null,null,null,null,null,{"$f":"Módulo1.NumeroDeHoras(K46)\n+Módulo1.NumeroDeHoras(L46)\n+Módulo1.NumeroDeHoras(M46)\n+Módulo1.NumeroDeHoras(N46)\n+Módulo1.NumeroDeHoras(O46)\n+Módulo1.NumeroDeHoras(P46)","v":0}]
[null,null,null,null,null,null,null,null,"                            TOTAL (38)",null,{"$f":"Módulo1.NumeroDeHoras(K46)","v":0},{"$f":"Módulo1.NumeroDeHoras(L46)","v":0},0,0,0,0,{"$f":"SUM(K47:P47)","v":0}]
[]
["OBSERVACIONES  (39)",null,null,null,null,null,null,null,null,null,"FECHA  DE REGISTRO DE LA INFORMACIÓN:  (40)"]
[null,null,null,null,null,"Seleccione de la lista la subdirección que corresponde."]
[42,null,null,null,null,"43\nSUBDIRECTOR DE xxxxxxx",null,null,null,null,"      SELLO (41)"]
["        NOMBRE Y FIRMA DEL TRABAJADOR(A)   ",null,null,null,null,null,null,null,null,null,null,null,44]
[null,null,null,null,null,null,null,null,null,null,null,null,"DIRECTORA DEL PLANTEL"]
["NOTA:  ESTE HORARIO ESTA SUJETO A MODIFICACIONES SEGÚN NECESIDADES DE LA INSTITUCIÓN"]
[]
["C.c.p.- Subdirección Académica ",null,null,null,null,"C.c.p.- Departamento de Planeación, Programación y Presupuestación",null,null,null,null,null,null,"C.c.p.- Departamento de Recursos Humanos"]

{"sheet":"INSTRUCTIVO","index":1,"n_rows":60,"n_cols":2,"rows_kept":60,"cut":false,"hidden":false,"merged":[[35,10,35,17],[36,10,36,17],[38,10,38,17],[39,10,39,17],[40,10,40,17],[34,10,34,17],[37,10,37,17],[2,1,3,8],[9,1,9,8],[10,1,10,8],[11,1,11,8],[12,1,12,8],[5,1,5,8],[6,1,6,8],[7,1,7,8],[13,1,13,8],[14,1,14,8],[15,1,15,8],[16,1,16,8],[17,1,17,8],[18,1,18,8],[19,1,19,8],[20,1,20,8],[21,1,21,8],[22,1,22,8],[23,1,23,8],[24,1,24,8],[25,1,25,8],[26,1,26,8],[27,1,27,8],[28,1,28,8],[29,1,29,8],[30,1,30,8],[31,1,31,8],[32,1,32,8],[33,1,33,8],[34,1,34,8],[35,1,35,8],[36,1,36,8],[37,1,37,8],[38,1,38,8],[39,1,39,8],[40,1,40,8],[41,1,41,8],[42,1,42,8],[43,1,43,8],[44,1,44,8],[45,1,45,8],[46,1,46,8],[47,1,47,8],[48,1,48,8],[49,1,49,8],[50,1,50,8],[51,1,51,8],[52,1,52,8],[53,1,53,8],[54,1,54,8],[55,1,55,8],[56,1,56,8],[57,1,57,8],[59,1,59,8],[60,1,60,8],[61,1,61,8],[62,1,62,8],[63,1,63,8],[64,1,64,8],[65,1,65,8],[66,1,66,8],[67,1,67,8],[68,1,68,8],[69,1,69,8],[70,1,70,8],[71,1,71,8],[72,1,72,8],[73,1,73,8],[74,1,74,8],[75,1,75,8],[76,1,76,8],[77,1,77,8],[78,1,78,8],[79,1,79,8],[80,1,80,8],[81,1,81,8],[82,1,82,8],[83,1,83,8],[89,1,89,8],[90,1,90,8],[91,1,91,8],[92,1,92,8],[84,1,84,8],[85,1,85,8],[86,1,86,8],[87,1,87,8],[88,1,88,8]]}
[]
[]
[null,"INSTRUCTIVO DE LLENADO FORMATO PARA HORARIO DE TRABAJO \nDE INSTITUTOS TECNOLÓGICOS"]
[]
[]
[null,"El formato para las horas de las actividades es:"]
[null,"1. Usar un guión medio (-) entre las horas, ejemplo: 7-9   ó  7:00-9:00   ó  7:30-10:30"]
[null,"2. Si desea poner diferentes horas en el mismo dia, usar una coma (,): 7-9, 11-13"]
[]
[]
[null,"1. C.C.T.: Anotar la Clave del Centro de Trabajo."]
[null,"2. PERIODO ESCOLAR: Anotar el periodo escolar correspondiente."]
[null,"3. NOMBRE COMPLETO: Anotar el nombre completo iniciando con su Nombre (s); Apellido Paterno y Apellido Materno. "]
[null,"4. CLAVE COMPLETA DE LA(S) PLAZA(S): Anotar la(s) clave(s) presupuestaria que corresponda. "]
[null,"5 RFC: Anotar el Registro Federal de Contribuyente"]
[null,"6. ESCOLARIDAD DEL PERSONAL: Anotar el último nivel de estudios y el nombre de la carrera o posgrado cursado en las líneas que le continúen de acuerdo con los rubros siguientes:\n\n LICENCIATURA EN:\n ESPECIALIDAD EN:\n MAESTRIA EN:\n DOCTORADO EN:\n\nAsí mismo marcar con una “X” en las columnas de PASANTE o TITULADO de acuerdo al documento oficial que avale los niveles de estudio de licenciatura o posgrado del personal."]
[null,"7. TIPO DE NOMBRAMIENTO: Anotar el tipo de nombramiento (10,95 o 20)."]
[null,"8. FECHA DE INGRESO A LA SEP: Anotar la fecha en que ingresó a la Secretaría de Educación Pública iniciando por el año, mes y día.  FECHA DE INGRESO A LA INSTITUCIÓN: Anotar la fecha en que ingresó al Instituto Tecnológico, iniciando por el año, mes y día. "]
[null,"9. NO. DE TARJETA DE CONTROL: Anotar el número asignado de tarjeta de control de puntualidad y asistencia. "]
[null,"10. UNIDAD ORGANICA DE ADSCRIPCIÓN: Anotar la unidad academica que corresponda al mayor numero de horas asignadas y/o nombramiento otorgado."]
[]
[null,"I.- CARGA ACADÉMICA:"]
[null,"11. ASIGNATURA: Anotar el nombre de la asignatura que atiende dentro de su horario autorizado."]
[null,"12. GRUPO: De acuerdo al nombre de la asignatura anotar la clave de cada grupo que atiende. "]
[null,"13. estudiantes: De acuerdo al nombre de la asignatura anotar el número de estudiantes que atiende en cada grupo. "]
[null,"14.  AULA, TALLER O LABORATORIO: De acuerdo al nombre de la asignatura, anotar la clave del espacio donde se encuentra atendiendo cada grupo. "]
[null,"15. NIVEL: Anotar la letra que corresponda al nivel del grupo que atiende de acuerdo a las letras siguientes:\n\n L=Licenciatura\n E=Especialización\n M=Maestría\n D=Doctorado"]
[null,"16. MODALIDAD: Anotar la letra que corresponda a la modalidad de la licenciatura o posgrado de acuerdo con las letras siguientes:\n\n E=Escolarizada\n M=Mixta"]
[null,"17. CARRERA(S): De acuerdo a la asignatura, anotar nombre(s) de la (s) carrera (s) que cursa el grupo que atiende. "]
[null,"18. HORARIO: Anotar el horario de acuerdo al nombre de la asignatura y preparación control y evaluación de materias que imparte, en las columnas correspondientes a cada día de la semana (L.- Lunes; M.-Martes; M.-Miércoles; J.-Jueves; y V.- Viernes)."]
[null,"19. TOTAL HRS. SEMANALES: Anotar la suma total de las cantidades de las filas de HORARIO. "]
[null,"20. SUBTOTAL: Anotar la suma de cada una de las columnas de acuerdo al horario por día. "]
[]
[null,"II.- ACTIVIDADES DE APOYO A LA DOCENCIA:"]
[null,"21. NOMBRE DE LA ACTIVIDAD: Anotar el nombre de la actividad de apoyo a la docencia de acuerdo a los rubros siguientes:\n\n PROGRAMA INSTITUCIONAL DE TUTORIAS\n ACTIVIDADES DE ACADEMIA\n DISEÑAR O PRODUCIR MATERIALES DIDACTICOS\n ACTIVIDADES DE APOYO A LA INVESTIGACIÓN\n PRESTAR ASESORIAS EN PROYECTOS EXTERNOS Y LABORES DE EXTENSION                                                                                                    PRESTAR ASESORÍAS EN PROYECTOS DE RESIDENCIA PROFESIONAL\n PRESTAR ASESORÍAS A TESISTAS "]
[null,"22. METAS A ATENDER: Anotar las metas a atender de acuerdo a los rubros indicados en los renglones de la columna de NOMBRE DE LA ACTIVIDAD."]
[null,"23. HORARIO: Anotar el horario asignado a las actividades de apoyo a la docencia indicados en los renglones de la columna de NOMBRE DE LA ACTIVIDAD, correspondiente a cada día de la semana (L.- Lunes; M.-Martes; M.-Miércoles; J.-Jueves; y V.-Viernes)."]
[null,"24. TOTAL HRS. SEMANALES: Anotar la suma total de las cantidades de las filas de HORARIO. "]
[null,"25. SUBTOTAL: Anotar la suma de cada una de las columnas de acuerdo al horario por día. "]
[null,"26. TOTAL: Anotar la suma de los numerales 20 y 25 del formato. "]
[]
[null,"III.- ACTIVIDADES EN LA ADMINISTRACIÓN:"]
[null,"27. PUESTO: Anotar el nombre del puesto de acuerdo al Proceso Estratégico, Clave o Específico que se apoya."]
[null,"28. UNIDAD ORGÁNICA DE ADSCRIPCIÓN: Anotar el nombre completo de la Unidad Orgánica de adscripción, de acuerdo a la estructura Organizacional Autorizada al Instituto Tecnológico."]
[null,"29. HORARIO: Anotar el horario asignado al puesto que desempeña en cada día de la semana (L.-Lunes; M.-Martes; M.-Miércoles; J.- Jueves; y V.-Viernes)."]
[null,"30. TOTAL HRS. SEMANALES: Anotar la suma total de las cantidades de las filas de HORARIO. "]
[null,"31. SUBTOTAL: Anotar la suma de cada una de las columnas de acuerdo al horario por día."]
[null,"32. TOTAL: Anotar la suma de los numerales 26 y 31 del formato. "]
[null,"33. PERSONAL NO DOCENTE: Marcar con “X” según corresponda, Primaria, Secundaria, Preparatoria u Otro (especificar si no coincide con el concepto 6). "]
[null,"34. PUESTO: Anotar el nombre del puesto de acuerdo al Proceso Estratégico, Clave o Especifico que se apoya. "]
[null,"35. UNIDAD ORGÁNICA DE ADSCRIPCIÓN: Anotar el nombre completo de la Unidad Orgánica de adscripción, de acuerdo a la Estructura Organizacional autorizada al Instituto Tecnológico."]
[null,"36. HORARIO: Anotar el horario asignado al puesto que desempeña en las columnas correspondientes a cada día de la semana (L.-Lunes; M.-Martes; M.-Miércoles; J.- Jueves; y V.-Viernes)."]
[null,"37. TOTAL HRS. SEMANALES: Anotar la suma total de las cantidades de las filas de HORARIO."]
[null,"38. TOTAL: Anotar la suma de cada una de las columnas de acuerdo al horario por día."]
[null,"39. OBSERVACIONES: Anotar las consideraciones que crea pertinentes (ej. Academia, Proyecto de Investigación (nombre, numero de autorización), Manual de Practicas (nombre), entre otras actividades academicas."]
[null,"40. FECHA DE REGISTRO DE LA INFORMACIÓN: Anotar la fecha del registro de la información iniciando por el día, mes y año. "]
[null,"41. SELLO: Deberá plasmar el sello Oficial del Instituto Tecnológico. "]
[null,"42. NOMBRE Y FIRMA DEL TRABAJADOR: Nombre y firma del trabajador(a) en el formato. "]
[null,"43. NOMBRE Y FIRMA DEL SUBDIRECTOR(A) CORRESPONDIENTE: Anotar el nombre completo y firma del subdirector(a) del Instituto Tecnológico."]
[null,"44. NOMBRE Y FIRMA DEL DIRECTOR(A): Anotar el nombre completo y firma del Director(a) del Instituto Tecnológico."]

{"sheet":"LISTAS","index":2,"n_rows":34,"n_cols":2,"rows_kept":34,"cut":false,"hidden":false,"merged":[]}
[1,"\n________________________________________\nSUBDIRECTOR(A) ACADÉMICA"]
[2,"\n__________________________________\nSUBDIRECTOR(A) DE PLANEACIÓN Y VINCULACIÓN"]
[3,"\n_______________________________\nSUBDIRECTOR(A) ADMINISTRATIVO"]
[null,"1. PROGRAMA INSTITUCIONAL DE TUTORIAS"]
[null,"2. ACTIVIDADES DE ACADEMIA"]
[null,"3. DISEÑAR O PRODUCIR MATERIALES DIDÁCTICOS"]
[null,"4. ACTIVIDADES DE APOYO A LA INVESTIGACIÓN"]
[null,"5. PRESTAR  ASESORÍAS EN PROYECTOS EXTERNOS Y LABORES DE EXTENSIÓN"]
[null,"6. PRESTAR ASESORÍAS EN PROYECTOS DE RESIDENCIAS PROFESIONALES"]
[null,"7. PRESTAR ASESORIA A TESISTAS"]
[null,"DIAS"]
[1,"Lunes"]
[2,"Martes"]
[3,"Miércoles"]
[4,"Jueves"]
[5,"Viernes"]
[6,"Sábado"]
[]
["ID","Carrera"]
[1,"ING. EN AGRONOMIA"]
[2,"ING. EN SISTEMAS COMPUTACIONALES"]
[3,"ING. EN INNOVACION AGRICOLA SUSTENTABLE"]
[4,"ING. AMBIENTAL"]
[5,"ING. INDUSTRIAS ALIMENTARIAS"]
[6,"MAESTRIA EN AGROBIOTECNOLOGIA"]
[7,"DOCTORADO EN AGROBIOTECNOLOGIA"]
[]
["ID","MODALIDAD"]
[1,"ESCOLARIZADO"]
[2,"MIXTA"]
[]
["ID","NIVEL"]
[1,"LICENCIATURA"]
[2,"POSGRADO"]